[Event "41st Nezhmetdinov Rapid 2019"]
[Site "Kazan"]
[Date "2019.05.29"]
[Round "1.9"]
[White "Rozum, Ivan"]
[Black "Dubnikova, Anastasia"]
[Result "1-0"]
[ECO "D20"]
[WhiteElo "2598"]
[BlackElo "1959"]
[Annotator "RC"]
[PlyCount "77"]
[EventDate "2019.05.29"]
[EventType "swiss"]
[EventCountry "RUS"]
[SourceTitle "playchess.com"]
[Source "ChessBase"]
[SourceQuality "1"]
[TimeControl "900+10"]

1. d4 {[%emt 0:00:00]} d5 {[%emt 0:00:00]} 2. c4 {[%emt 0:00:00]} dxc4 {[%emt 0:00:00]} 3. e4 {[%emt 0:00:00]} e5 {[%emt 0:00:02]} 4. Nf3 {[%emt 0:00:00]} exd4 {[%emt 0:00:06]} 5. Qxd4 {[%emt 0:00:40]} Qxd4 {[%emt 0:00:15]} 6. Nxd4 {[%emt 0:00:02]} c6 {[%emt 0:01:15]} 7. Bxc4 {[%emt 0:00:05]} Bc5 {[%emt 0:00:35]} 8. Be3 {[%emt 0:00:32]} Nd7 {[%emt 0:00:17]} 9. f3 {[%emt 0:00:11]} Ne5 {[%emt 0:00:18]} 10. Be2 {[%emt 0:00:05]} Nf6 {[%emt 0:00:42]} 11. Nd2 {[%emt 0:00:11]} O-O {[%emt 0:00:27]} 12. Kf2 {[%emt 0:00:16]} Rd8 {[%emt 0:00:12]} 13. N2b3 {[%emt 0:00:05]} Bb6 {[%emt 0:00:07]} 14. Rhd1 {[%emt 0:00:05]} a5 {[%emt 0:01:41]} 15. a4 {[%emt 0:00:14]} Ng6 {[%emt 0:01:13]} 16. Rac1 {[%emt 0:00:57]} Bc7 {[%emt 0:01:29]} 17. g3 {[%emt 0:01:05]} h6 {[%emt 0:00:53]} 18. Nc5 {[%emt 0:03:27]} Rb8 {[%emt 0:01:18]} 19. Rd2 {[%emt 0:01:52]} Kf8 {[%emt 0:00:33]} 20. Rcd1 {[%emt 0:00:13]} Ke7 {[%emt 0:01:37]} 21. h4 {[%emt 0:02:00]} Ne5 {[%emt 0:00:43]} 22. g4 {[%emt 0:00:39]} b6 {[%emt 0:02:36]} 23. Na6 {[%emt 0:00:13]} Bxa6 {[%emt 0:00:41]} 24. Bxa6 {[%emt 0:00:02]} c5 {[%emt 0:01:44]} 25. Nf5+ {[%emt 0:00:18]} Kf8 {[%emt 0:00:01]} 26. Ke2 {[%emt 0:01:24]} Rxd2+ {[%emt 0:00:11]} 27. Rxd2 {[%emt 0:00:01]} Ng6 {[%emt 0:00:21]} 28. h5 {[%emt 0:00:59]} Nf4+ {[%emt 0:00:05]} 29. Kd1 {[%emt 0:00:05]} Ne6 {[%emt 0:00:11]} 30. Bc4 {[%emt 0:00:30]} Be5 {[%emt 0:00:12]} 31. Kc2 {[%emt 0:00:23]} Nf4 {[%emt 0:00:14]} 32. Kb3 {[%emt 0:00:16]} Ne6 {[%emt 0:00:08]} 33. Bxe6 {[%emt 0:00:03]} fxe6 {[%emt 0:00:01]} 34. Nh4 {[%emt 0:00:02]} Ke8 {[%emt 0:00:18]} 35. Ng6 {[%emt 0:00:10]} Bc7 {[%emt 0:00:03]} 36. Kc4 {[%emt 0:00:04]} Nd7 {[%emt 0:00:07]} 37. Kb5 {[%emt 0:00:07]} Rc8 {[%emt 0:00:05]} 38. Ka6 {[%emt 0:01:07]} Kd8 {[%emt 0:00:27]} 39. Nf8 {[%emt 0:00:04]} 1-0

[Event "41st Nezhmetdinov Rapid 2019"]
[Site "Kazan"]
[Date "2019.05.29"]
[Round "1.10"]
[White "Maltsev, Vladimir"]
[Black "Vallejo Pons, Francisco"]
[Result "0-1"]
[ECO "A80"]
[WhiteElo "2222"]
[BlackElo "2593"]
[Annotator "RC"]
[PlyCount "50"]
[EventDate "2019.05.29"]
[EventType "swiss"]
[EventCountry "RUS"]
[SourceTitle "playchess.com"]
[Source "ChessBase"]
[SourceQuality "1"]
[TimeControl "900+10"]

1. d4 {[%emt 0:00:00]} f5 {[%emt 0:00:00]} 2. Nc3 {[%emt 0:00:00]} Nf6 {[%emt 0:00:02]} 3. Bg5 {[%emt 0:00:00]} d5 {[%emt 0:00:02]} 4. Bxf6 {[%emt 0:03:17]} exf6 {[%emt 0:00:03]} 5. e3 {[%emt 0:00:09]} Be6 {[%emt 0:00:13]} 6. Bd3 {[%emt 0:00:14]} Nc6 {[%emt 0:00:35]} 7. Nf3 {[%emt 0:00:41]} Qd7 {[%emt 0:01:01]} 8. a3 {[%emt 0:01:02]} Ne7 {[%emt 0:00:55]} 9. Ne2 {[%emt 0:00:49]} Nc8 {[%emt 0:00:10]} 10. Nf4 {[%emt 0:01:16]} Bf7 {[%emt 0:00:04]} 11. h4 {[%emt 0:00:16]} g6 {[%emt 0:00:18]} 12. Nd2 {[%emt 0:01:25]} Nd6 {[%emt 0:01:20]} 13. Qe2 {[%emt 0:01:33]} Bh6 {[%emt 0:00:41]} 14. g3 {[%emt 0:00:28]} O-O-O {[%emt 0:00:26]} 15. O-O-O {[%emt 0:01:05]} Rhe8 {[%emt 0:01:41]} 16. Kb1 {[%emt 0:00:24]} Qc6 {[%emt 0:00:02]} 17. Rc1 {[%emt 0:02:14]} Nc4 {[%emt 0:01:11]} 18. Ka2 {[%emt 0:01:15]} Bf8 {[%emt 0:04:18]} 19. Nb1 {[%emt 0:01:19]} a6 {[%emt 0:01:15]} 20. b3 {[%emt 0:00:17]} Ne5 {[%emt 0:00:17]} 21. c4 {[%emt 0:00:21]} dxc4 {[%emt 0:01:43]} 22. Bxc4 {[%emt 0:00:15]} Nxc4 {[%emt 0:00:09]} 23. bxc4 {[%emt 0:00:02]} Rxd4 {[%emt 0:00:07]} 24. Nd2 {[%emt 0:00:26]} Qa4 {[%emt 0:00:35]} 25. Rc3 {[%emt 0:00:07]} Bb4 0-1

[Event "41st Nezhmetdinov Rapid 2019"]
[Site "Kazan"]
[Date "2019.05.29"]
[Round "3.5"]
[White "Makhmutov, Rail"]
[Black "Sarana, Alexey"]
[Result "0-1"]
[ECO "D71"]
[WhiteElo "2390"]
[BlackElo "2636"]
[Annotator "RC"]
[PlyCount "145"]
[EventDate "2019.05.29"]
[EventType "swiss"]
[EventCountry "RUS"]
[SourceTitle "playchess.com"]
[Source "ChessBase"]
[SourceQuality "1"]
[TimeControl "900+10"]

1. d4 {[%emt 0:00:00]} Nf6 {[%emt 0:00:00]} 2. c4 {[%emt 0:00:00]} g6 {[%emt 0:00:00]} 3. g3 {[%emt 0:00:33]} c6 {[%emt 0:00:00]} 4. Bg2 {[%emt 0:00:07]} d5 {[%emt 0:00:00]} 5. cxd5 {[%emt 0:00:48]} cxd5 {[%emt 0:00:00]} 6. Nf3 {[%emt 0:00:04]} Bg7 {[%emt 0:00:02]} 7. Ne5 {[%emt 0:00:27]} O-O {[%emt 0:00:36]} 8. Nc3 {[%emt 0:00:25]} e6 {[%emt 0:00:21]} 9. O-O {[%emt 0:00:23]} Nfd7 {[%emt 0:00:04]} 10. Nf3 {[%emt 0:00:25]} Nf6 {[%emt 0:00:03]} 11. Ne5 {[%emt 0:00:06]} Nfd7 {[%emt 0:00:02]} 12. Nf3 {[%emt 0:00:03]} Nc6 {[%emt 0:00:04]} 13. Bf4 {[%emt 0:00:43]} Qb6 {[%emt 0:00:32]} 14. Na4 {[%emt 0:00:58]} Qb5 {[%emt 0:00:26]} 15. b3 {[%emt 0:00:53]} Nb6 {[%emt 0:00:45]} 16. Nxb6 {[%emt 0:01:05]} Qxb6 {[%emt 0:00:14]} 17. e3 {[%emt 0:00:48]} Bd7 {[%emt 0:00:04]} 18. Rc1 {[%emt 0:00:52]} Rfc8 {[%emt 0:00:15]} 19. Qd2 {[%emt 0:00:27]} Bf8 {[%emt 0:00:21]} 20. Ne5 {[%emt 0:01:07]} Nxe5 {[%emt 0:00:10]} 21. Bxe5 {[%emt 0:00:08]} Bb4 {[%emt 0:02:30]} 22. Qb2 {[%emt 0:01:05]} Qa5 {[%emt 0:00:57]} 23. Rxc8+ {[%emt 0:01:07]} Rxc8 {[%emt 0:00:02]} 24. a4 {[%emt 0:00:04]} Qd8 {[%emt 0:05:01]} 25. Rc1 {[%emt 0:01:57]} Bc6 {[%emt 0:01:37]} 26. g4 {[%emt 0:00:46]} f6 {[%emt 0:00:04]} 27. Bg3 {[%emt 0:00:02]} Qb6 {[%emt 0:00:05]} 28. e4 {[%emt 0:01:22]} Rd8 {[%emt 0:01:35]} 29. e5 {[%emt 0:00:26]} Be7 {[%emt 0:00:37]} 30. Qe2 {[%emt 0:01:05]} f5 {[%emt 0:01:40]} 31. gxf5 {[%emt 0:00:22]} gxf5 {[%emt 0:00:02]} 32. Qe3 {[%emt 0:00:12]} Rf8 {[%emt 0:00:46]} 33. Bf4 {[%emt 0:00:36]} Kh8 {[%emt 0:00:03]} 34. Bg5 {[%emt 0:00:34]} Qd8 {[%emt 0:00:40]} 35. Bxe7 {[%emt 0:00:03]} Qxe7 {[%emt 0:00:01]} 36. f4 {[%emt 0:00:19]} Qa3 {[%emt 0:00:07]} 37. Rc3 {[%emt 0:00:18]} Rg8 {[%emt 0:00:08]} 38. Qc1 {[%emt 0:00:15]} Qb4 {[%emt 0:00:30]} 39. Qe3 {[%emt 0:00:20]} Bxa4 {[%emt 0:00:13]} 40. bxa4 {[%emt 0:00:09]} Qb2 {[%emt 0:00:01]} 41. Qf3 {[%emt 0:00:03]} Rxg2+ {[%emt 0:00:42]} 42. Qxg2 {[%emt 0:00:02]} Qa1+ {[%emt 0:00:05]} 43. Kf2 {[%emt 0:00:10]} Qxc3 {[%emt 0:00:02]} 44. Qg5 {[%emt 0:00:09]} Qxd4+ {[%emt 0:00:02]} 45. Ke2 {[%emt 0:00:16]} Qc4+ {[%emt 0:00:02]} 46. Kf2 {[%emt 0:00:18]} Qc2+ {[%emt 0:00:18]} 47. Ke1 {[%emt 0:00:06]} Qc3+ {[%emt 0:00:09]} 48. Ke2 {[%emt 0:00:04]} Qc4+ {[%emt 0:00:02]} 49. Kf2 {[%emt 0:00:05]} Qc5+ {[%emt 0:00:02]} 50. Ke2 {[%emt 0:00:01]} Qf8 {[%emt 0:00:04]} 51. h4 {[%emt 0:00:08]} b6 {[%emt 0:00:54]} 52. h5 {[%emt 0:00:05]} a6 {[%emt 0:00:01]} 53. Kd3 {[%emt 0:00:02]} b5 {[%emt 0:00:01]} 54. axb5 {[%emt 0:00:02]} axb5 {[%emt 0:00:01]} 55. Kc3 {[%emt 0:00:17]} b4+ {[%emt 0:00:44]} 56. Kb3 {[%emt 0:00:01]} d4 {[%emt 0:00:00]} 57. Kc4 {[%emt 0:00:05]} Qc8+ {[%emt 0:00:23]} 58. Kxb4 {[%emt 0:00:09]} d3 {[%emt 0:00:08]} 59. Qe7 {[%emt 0:00:38]} Kg8 {[%emt 0:00:12]} 60. Kb5 {[%emt 0:00:23]} d2 {[%emt 0:00:16]} 61. h6 {[%emt 0:00:07]} Qb8+ {[%emt 0:00:01]} 62. Kc6 {[%emt 0:00:13]} Qf8 {[%emt 0:00:16]} 63. Qxe6+ {[%emt 0:00:23]} Kh8 {[%emt 0:00:03]} 64. Qd7 {[%emt 0:00:08]} Qxh6+ {[%emt 0:00:02]} 65. Kb5 {[%emt 0:00:09]} Qxf4 {[%emt 0:00:28]} 66. Qd8+ {[%emt 0:00:09]} Kg7 {[%emt 0:00:01]} 67. Qf6+ {[%emt 0:00:02]} Kg8 {[%emt 0:00:01]} 68. e6 {[%emt 0:00:08]} Qb8+ {[%emt 0:00:08]} 69. Ka6 {[%emt 0:00:24]} Qc8+ {[%emt 0:00:18]} 70. Kb6 {[%emt 0:00:06]} Qb8+ {[%emt 0:00:02]} 71. Ka6 {[%emt 0:00:02]} Qd6+ {[%emt 0:00:18]} 72. Kb7 {[%emt 0:00:12]} Qf8 {[%emt 0:00:12]} 73. e7 0-1

[Event "41st Nezhmetdinov Rapid 2019"]
[Site "Kazan"]
[Date "2019.05.29"]
[Round "3.7"]
[White "Korovin, Mikhail"]
[Black "Khanin, Semen"]
[Result "0-1"]
[ECO "B08"]
[WhiteElo "2311"]
[BlackElo "2524"]
[Annotator "RC"]
[PlyCount "114"]
[EventDate "2019.05.29"]
[EventType "swiss"]
[EventCountry "RUS"]
[SourceTitle "playchess.com"]
[Source "ChessBase"]
[SourceQuality "1"]
[TimeControl "900+10"]

1. d4 {[%emt 0:00:00]} Nf6 {[%emt 0:00:00]} 2. Nf3 {[%emt 0:00:00]} g6 {[%emt 0:00:00]} 3. Nc3 {[%emt 0:00:11]} Bg7 {[%emt 0:00:25]} 4. e4 {[%emt 0:00:03]} d6 {[%emt 0:00:01]} 5. h3 {[%emt 0:00:37]} O-O {[%emt 0:00:05]} 6. Be3 {[%emt 0:00:05]} a6 {[%emt 0:00:11]} 7. a4 {[%emt 0:01:20]} Nc6 {[%emt 0:00:53]} 8. Qd2 {[%emt 0:00:25]} Re8 {[%emt 0:00:12]} 9. Rd1 {[%emt 0:00:10]} e5 {[%emt 0:00:40]} 10. d5 {[%emt 0:01:56]} Nd4 {[%emt 0:00:01]} 11. Be2 {[%emt 0:00:26]} Nxe2 {[%emt 0:01:49]} 12. Qxe2 {[%emt 0:00:02]} b5 {[%emt 0:00:46]} 13. axb5 {[%emt 0:01:19]} axb5 {[%emt 0:00:28]} 14. b4 {[%emt 0:00:09]} Bd7 {[%emt 0:01:33]} 15. O-O {[%emt 0:00:14]} Ra3 {[%emt 0:00:05]} 16. Nb1 {[%emt 0:03:44]} Ra4 {[%emt 0:00:15]} 17. Nc3 {[%emt 0:03:07]} Rxb4 {[%emt 0:00:12]} 18. Nd2 {[%emt 0:00:11]} Rb2 {[%emt 0:00:42]} 19. Rb1 {[%emt 0:00:06]} b4 {[%emt 0:00:14]} 20. Nb5 {[%emt 0:01:28]} Rxc2 {[%emt 0:03:05]} 21. Rxb4 {[%emt 0:00:06]} Nxe4 {[%emt 0:01:55]} 22. Rxe4 {[%emt 0:00:15]} f5 {[%emt 0:00:07]} 23. Rb4 {[%emt 0:01:03]} f4 {[%emt 0:00:02]} 24. Qd1 {[%emt 0:00:58]} Ra2 {[%emt 0:00:33]} 25. Qb1 {[%emt 0:00:14]} Ra8 {[%emt 0:01:34]} 26. Ne4 {[%emt 0:00:58]} fxe3 {[%emt 0:00:10]} 27. fxe3 {[%emt 0:00:01]} Rb8 {[%emt 0:00:58]} 28. Nbc3 {[%emt 0:00:01]} Rxb4 {[%emt 0:00:29]} 29. Qxb4 {[%emt 0:00:01]} Rf8 {[%emt 0:01:00]} 30. Rxf8+ {[%emt 0:00:06]} Bxf8 {[%emt 0:00:17]} 31. Qb7 {[%emt 0:00:06]} Bf5 {[%emt 0:00:30]} 32. g4 {[%emt 0:00:07]} Bd7 {[%emt 0:00:18]} 33. Kg2 {[%emt 0:00:29]} Bh6 {[%emt 0:00:09]} 34. Nb5 {[%emt 0:00:27]} Bxb5 {[%emt 0:00:23]} 35. Qxb5 {[%emt 0:00:01]} Bxe3 {[%emt 0:00:02]} 36. Qc6 {[%emt 0:00:17]} Kg7 {[%emt 0:00:09]} 37. Qb7 {[%emt 0:00:04]} h5 {[%emt 0:00:19]} 38. Kf3 {[%emt 0:00:08]} Bb6 {[%emt 0:00:16]} 39. Qc6 {[%emt 0:00:12]} Qf8+ {[%emt 0:00:06]} 40. Kg2 {[%emt 0:00:19]} hxg4 {[%emt 0:00:02]} 41. Qd7+ {[%emt 0:00:02]} Qf7 {[%emt 0:00:02]} 42. Qxf7+ {[%emt 0:00:14]} Kxf7 {[%emt 0:00:01]} 43. hxg4 {[%emt 0:00:02]} Ke7 {[%emt 0:00:01]} 44. Kf3 {[%emt 0:00:04]} c6 {[%emt 0:00:13]} 45. dxc6 {[%emt 0:00:22]} d5 {[%emt 0:00:01]} 46. Ng5 {[%emt 0:00:15]} Bc7 {[%emt 0:00:06]} 47. Ke3 {[%emt 0:00:10]} Bb6+ {[%emt 0:00:28]} 48. Kf3 {[%emt 0:00:03]} e4+ {[%emt 0:00:27]} 49. Kf4 {[%emt 0:00:15]} Bc7+ {[%emt 0:00:02]} 50. Ke3 {[%emt 0:00:02]} Kd6 {[%emt 0:00:01]} 51. Nf7+ {[%emt 0:00:04]} Kxc6 {[%emt 0:00:02]} 52. g5 {[%emt 0:00:08]} Bb6+ {[%emt 0:00:08]} 53. Kf4 {[%emt 0:00:05]} Bd4 {[%emt 0:00:01]} 54. Nd8+ {[%emt 0:00:33]} Kd7 {[%emt 0:00:02]} 55. Nf7 {[%emt 0:00:04]} Bb2 {[%emt 0:00:22]} 56. Kg4 {[%emt 0:00:12]} Ke7 {[%emt 0:00:04]} 57. Nh6 {[%emt 0:00:04]} Bg7 {[%emt 0:00:12]} 0-1

[Event "41st Nezhmetdinov Rapid 2019"]
[Site "Kazan"]
[Date "2019.05.29"]
[Round "3.9"]
[White "Tsydypov, Zhamsaran"]
[Black "Tsoi, Dmitry"]
[Result "1-0"]
[ECO "C41"]
[WhiteElo "2546"]
[BlackElo "2317"]
[Annotator "RC"]
[PlyCount "76"]
[EventDate "2019.05.29"]
[EventType "swiss"]
[EventCountry "RUS"]
[SourceTitle "playchess.com"]
[Source "ChessBase"]
[SourceQuality "1"]
[TimeControl "900+10"]

1. e4 {[%emt 0:00:00]} e5 {[%emt 0:00:00]} 2. Nf3 {[%emt 0:00:00]} d6 {[%emt 0:00:00]} 3. Bc4 {[%emt 0:00:20]} Be7 {[%emt 0:00:00]} 4. d4 {[%emt 0:00:04]} exd4 {[%emt 0:00:00]} 5. Nxd4 {[%emt 0:00:02]} Nf6 {[%emt 0:00:00]} 6. Nc3 {[%emt 0:00:07]} O-O {[%emt 0:00:01]} 7. O-O {[%emt 0:00:23]} Nc6 {[%emt 0:00:02]} 8. h3 {[%emt 0:00:15]} Bd7 {[%emt 0:00:04]} 9. Re1 {[%emt 0:00:06]} Nxd4 {[%emt 0:00:06]} 10. Qxd4 {[%emt 0:00:02]} Bc6 {[%emt 0:00:01]} 11. a4 {[%emt 0:00:13]} Nd7 {[%emt 0:00:07]} 12. Nd5 {[%emt 0:00:06]} Bf6 {[%emt 0:00:31]} 13. Qd1 {[%emt 0:01:16]} Bxd5 {[%emt 0:00:13]} 14. Bxd5 {[%emt 0:00:16]} c6 {[%emt 0:00:01]} 15. Bc4 {[%emt 0:00:13]} Qc7 {[%emt 0:00:02]} 16. c3 {[%emt 0:00:08]} Rfe8 {[%emt 0:00:10]} 17. a5 {[%emt 0:00:07]} b5 {[%emt 0:00:06]} 18. axb6 {[%emt 0:00:20]} axb6 {[%emt 0:00:04]} 19. Rxa8 {[%emt 0:00:10]} Rxa8 {[%emt 0:00:02]} 20. Bf4 {[%emt 0:00:21]} Be5 {[%emt 0:00:11]} 21. Be3 {[%emt 0:00:06]} b5 {[%emt 0:00:05]} 22. Be2 {[%emt 0:00:32]} g6 {[%emt 0:01:15]} 23. f4 {[%emt 0:00:13]} Bg7 {[%emt 0:00:14]} 24. Bf3 {[%emt 0:00:02]} Nb6 {[%emt 0:01:41]} 25. Bd4 {[%emt 0:00:01]} Bxd4+ {[%emt 0:01:06]} 26. cxd4 {[%emt 0:00:51]} d5 {[%emt 0:01:09]} 27. e5 {[%emt 0:00:05]} Ra2 {[%emt 0:00:40]} 28. f5 {[%emt 0:00:35]} Rxb2 {[%emt 0:01:24]} 29. f6 {[%emt 0:04:07]} Nc4 {[%emt 0:00:44]} 30. Qa1 {[%emt 0:00:12]} Qb8 {[%emt 0:02:11]} 31. e6 {[%emt 0:00:36]} fxe6 {[%emt 0:00:02]} 32. Rxe6 {[%emt 0:00:02]} Rb3 {[%emt 0:01:32]} 33. Qe1 {[%emt 0:00:14]} Kf8 {[%emt 0:02:27]} 34. Qh4 {[%emt 0:01:51]} h5 {[%emt 0:02:52]} 35. Qg5 {[%emt 0:02:03]} Rb1+ {[%emt 0:00:14]} 36. Kf2 {[%emt 0:00:00]} Qh2 {[%emt 0:00:23]} 37. Qxg6 {[%emt 0:01:10]} Rb2+ {[%emt 0:00:02]} 38. Re2 {[%emt 0:00:05]} Rxe2+ 1-0

[Event "41st Nezhmetdinov Rapid 2019"]
[Site "Kazan"]
[Date "2019.05.29"]
[Round "4.3"]
[White "Moiseenko, Vadim"]
[Black "Chigaev, Maksim"]
[Result "1/2-1/2"]
[ECO "A05"]
[WhiteElo "2525"]
[BlackElo "2637"]
[Annotator "RC"]
[PlyCount "233"]
[EventDate "2019.05.29"]
[EventType "swiss"]
[EventCountry "RUS"]
[SourceTitle "playchess.com"]
[Source "ChessBase"]
[SourceQuality "1"]
[TimeControl "900+10"]

1. Nf3 {[%emt 0:00:00]} Nf6 {[%emt 0:00:00]} 2. b3 {[%emt 0:00:00]} g6 {[%emt 0:00:00]} 3. Bb2 {[%emt 0:00:00]} Bg7 {[%emt 0:00:00]} 4. e3 {[%emt 0:00:03]} O-O {[%emt 0:00:00]} 5. c4 {[%emt 0:00:12]} d6 {[%emt 0:00:10]} 6. d4 {[%emt 0:00:11]} e5 {[%emt 0:00:11]} 7. dxe5 {[%emt 0:00:40]} dxe5 {[%emt 0:00:36]} 8. Nc3 {[%emt 0:02:45]} Qe7 {[%emt 0:00:50]} 9. Be2 {[%emt 0:02:01]} e4 {[%emt 0:02:43]} 10. Nd2 {[%emt 0:00:11]} Rd8 {[%emt 0:00:09]} 11. Qc2 {[%emt 0:01:09]} Na6 {[%emt 0:00:17]} 12. a3 {[%emt 0:01:27]} Nc5 {[%emt 0:00:14]} 13. O-O {[%emt 0:00:22]} Rxd2 {[%emt 0:01:01]} 14. Qxd2 {[%emt 0:00:01]} Nxb3 {[%emt 0:00:02]} 15. Qc2 {[%emt 0:00:47]} Nxa1 {[%emt 0:00:03]} 16. Rxa1 {[%emt 0:00:01]} c6 {[%emt 0:00:07]} 17. a4 {[%emt 0:00:03]} a5 {[%emt 0:00:20]} 18. Ba3 {[%emt 0:00:18]} Qe5 {[%emt 0:00:08]} 19. Rd1 {[%emt 0:00:04]} Be6 {[%emt 0:01:43]} 20. Bd6 {[%emt 0:00:24]} Qf5 {[%emt 0:00:14]} 21. h3 {[%emt 0:00:21]} h5 {[%emt 0:00:20]} 22. Qb3 {[%emt 0:01:17]} b5 {[%emt 0:07:56]} 23. axb5 {[%emt 0:00:03]} cxb5 {[%emt 0:00:03]} 24. Nxb5 {[%emt 0:00:55]} Ne8 {[%emt 0:00:09]} 25. Be7 {[%emt 0:01:49]} Qe5 {[%emt 0:00:23]} 26. Qa3 {[%emt 0:01:39]} Qb2 {[%emt 0:00:16]} 27. Qxb2 {[%emt 0:00:40]} Bxb2 {[%emt 0:00:02]} 28. Rb1 {[%emt 0:00:06]} Be5 {[%emt 0:00:01]} 29. Nd4 {[%emt 0:00:02]} Bd7 {[%emt 0:00:27]} 30. c5 {[%emt 0:00:14]} Bxd4 {[%emt 0:01:03]} 31. exd4 {[%emt 0:00:02]} Be6 {[%emt 0:00:02]} 32. f3 {[%emt 0:01:22]} e3 {[%emt 0:00:11]} 33. Bd3 {[%emt 0:00:09]} Nc7 {[%emt 0:00:23]} 34. Bd6 {[%emt 0:00:46]} Nd5 {[%emt 0:00:02]} 35. c6 {[%emt 0:00:05]} a4 {[%emt 0:00:22]} 36. Ra1 {[%emt 0:00:08]} Rc8 {[%emt 0:00:07]} 37. Bb5 {[%emt 0:00:40]} Nc3 {[%emt 0:00:09]} 38. Bxa4 {[%emt 0:00:11]} Ra8 {[%emt 0:00:04]} 39. Ra3 {[%emt 0:00:11]} Nxa4 {[%emt 0:00:13]} 40. Rxe3 {[%emt 0:00:06]} Nb6 {[%emt 0:00:06]} 41. Rc3 {[%emt 0:00:10]} Rc8 {[%emt 0:00:19]} 42. c7 {[%emt 0:00:13]} Nd5 {[%emt 0:00:03]} 43. Rc5 {[%emt 0:00:02]} f6 {[%emt 0:00:14]} 44. g4 {[%emt 0:00:02]} Kf7 {[%emt 0:00:03]} 45. f4 {[%emt 0:00:06]} hxg4 {[%emt 0:00:03]} 46. hxg4 {[%emt 0:00:00]} f5 {[%emt 0:00:11]} 47. gxf5 {[%emt 0:00:31]} gxf5 {[%emt 0:00:01]} 48. Be5 {[%emt 0:00:05]} Ne7 {[%emt 0:00:09]} 49. Kf2 {[%emt 0:00:05]} Ke8 {[%emt 0:00:14]} 50. Ra5 {[%emt 0:00:18]} Kd7 {[%emt 0:00:12]} 51. Ra6 {[%emt 0:00:14]} Nc6 {[%emt 0:00:01]} 52. Ke3 {[%emt 0:00:09]} Bd5 {[%emt 0:00:23]} 53. Rb6 {[%emt 0:00:04]} Nxe5 {[%emt 0:00:25]} 54. fxe5 {[%emt 0:00:13]} Kxc7 {[%emt 0:00:02]} 55. Rf6 {[%emt 0:00:19]} Be4 {[%emt 0:00:12]} 56. d5 {[%emt 0:00:02]} Bxd5 {[%emt 0:00:21]} 57. Rxf5 {[%emt 0:00:02]} Kd7 {[%emt 0:00:02]} 58. Rf6 {[%emt 0:00:06]} Be6 {[%emt 0:00:03]} 59. Rh6 {[%emt 0:00:01]} Rc4 {[%emt 0:00:05]} 60. Kd3 {[%emt 0:00:07]} Ra4 {[%emt 0:00:02]} 61. Ke3 {[%emt 0:00:02]} Ke7 {[%emt 0:00:10]} 62. Kd3 {[%emt 0:00:04]} Bf5+ {[%emt 0:00:11]} 63. Ke3 {[%emt 0:00:01]} Re4+ {[%emt 0:00:10]} 64. Kf3 {[%emt 0:00:01]} Rxe5 {[%emt 0:00:17]} 65. Rb6 {[%emt 0:00:11]} Be6 {[%emt 0:00:04]} 66. Kf4 {[%emt 0:00:14]} Kf6 {[%emt 0:00:01]} 67. Ra6 {[%emt 0:00:07]} Rb5 {[%emt 0:00:05]} 68. Ra4 {[%emt 0:00:12]} Rg5 {[%emt 0:00:15]} 69. Rd4 {[%emt 0:00:06]} Bd5 {[%emt 0:00:10]} 70. Rb4 {[%emt 0:00:14]} Rf5+ {[%emt 0:00:02]} 71. Ke3 {[%emt 0:00:03]} Ke5 {[%emt 0:00:02]} 72. Rb2 {[%emt 0:00:10]} Rf3+ {[%emt 0:00:03]} 73. Kd2 {[%emt 0:00:06]} Kd4 {[%emt 0:00:04]} 74. Rb4+ {[%emt 0:00:11]} Bc4 {[%emt 0:00:01]} 75. Rb2 {[%emt 0:00:01]} Rh3 {[%emt 0:00:39]} 76. Kc1 {[%emt 0:00:19]} Bb3 {[%emt 0:00:04]} 77. Rd2+ {[%emt 0:00:06]} Kc4 {[%emt 0:00:06]} 78. Rf2 {[%emt 0:00:14]} Kb4 {[%emt 0:00:11]} 79. Kd2 {[%emt 0:00:04]} Bc4 {[%emt 0:00:08]} 80. Rf4 {[%emt 0:00:13]} Kc5 {[%emt 0:00:19]} 81. Rf5+ {[%emt 0:00:09]} Bd5 {[%emt 0:00:04]} 82. Rf4 {[%emt 0:00:04]} Ra3 {[%emt 0:00:07]} 83. Rh4 {[%emt 0:00:10]} Rg3 {[%emt 0:00:28]} 84. Rf4 {[%emt 0:00:02]} Bc4 {[%emt 0:00:14]} 85. Rh4 {[%emt 0:00:13]} Rd3+ {[%emt 0:00:03]} 86. Kc2 {[%emt 0:00:02]} Kb4 {[%emt 0:00:05]} 87. Rf4 {[%emt 0:00:15]} Re3 {[%emt 0:00:23]} 88. Rf2 {[%emt 0:00:17]} Re4 {[%emt 0:00:25]} 89. Rh2 {[%emt 0:00:12]} Kc5 {[%emt 0:00:01]} 90. Rf2 {[%emt 0:00:06]} Rh4 {[%emt 0:00:12]} 91. Rg2 {[%emt 0:00:13]} Bd5 {[%emt 0:00:06]} 92. Rd2 {[%emt 0:00:13]} Kc4 {[%emt 0:00:13]} 93. Rf2 {[%emt 0:00:13]} Be4+ {[%emt 0:00:06]} 94. Kd2 {[%emt 0:00:02]} Kd4 {[%emt 0:00:07]} 95. Re2 {[%emt 0:00:25]} Rh3 {[%emt 0:00:12]} 96. Rf2 {[%emt 0:00:04]} Bf3 {[%emt 0:00:22]} 97. Kc2 {[%emt 0:00:23]} Ke3 {[%emt 0:00:20]} 98. Rd2 {[%emt 0:00:16]} Be4+ {[%emt 0:00:06]} 99. Kc3 {[%emt 0:00:01]} Rh1 {[%emt 0:00:02]} 100. Rb2 {[%emt 0:00:11]} Rc1+ {[%emt 0:00:03]} 101. Kb4 {[%emt 0:00:14]} Kd4 {[%emt 0:00:02]} 102. Rd2+ {[%emt 0:00:31]} Bd3 {[%emt 0:00:03]} 103. Rb2 {[%emt 0:00:02]} Rc6 {[%emt 0:00:13]} 104. Ka3 {[%emt 0:00:35]} Bc4 {[%emt 0:00:25]} 105. Kb4 {[%emt 0:00:02]} Rc8 {[%emt 0:00:18]} 106. Ka3 {[%emt 0:00:39]} Kc5 {[%emt 0:00:02]} 107. Rb7 {[%emt 0:00:04]} Ra8+ {[%emt 0:00:09]} 108. Kb2 {[%emt 0:00:01]} Kd4 {[%emt 0:00:01]} 109. Rd7+ {[%emt 0:00:08]} Bd5 {[%emt 0:00:01]} 110. Rc7 {[%emt 0:00:09]} Ra2+ {[%emt 0:00:02]} 111. Kb1 {[%emt 0:00:16]} Rh2 {[%emt 0:00:05]} 112. Rd7 {[%emt 0:00:13]} Re2 {[%emt 0:00:10]} 113. Rd8 {[%emt 0:00:02]} Kc4 {[%emt 0:00:06]} 114. Rb8 {[%emt 0:00:26]} Kc3 {[%emt 0:00:04]} 115. Ka1 {[%emt 0:00:10]} Re7 {[%emt 0:00:18]} 116. Rc8+ {[%emt 0:00:11]} Bc4 {[%emt 0:00:02]} 117. Rb8 {[%emt 0:00:11]} 1/2-1/2